bitfinex-derivatives/quotes_BNBF0:USTF0_20250417
["timestamp","ask_amount","ask_price","bid_price","bid_amount"]
[1744866061322,1.31078176,583.97,582.37,0.31520181]
[1744866061323,0.31140856,583.94,582.37,0.31520181]
[1744866061523,0.31140856,583.93,582.38,0.482]
[1744866061724,0.31140856,583.92,582.39,0.31520181]
[1744866062023,0.31140856,583.91,582.39,0.31520181]
[1744866062223,0.31140856,583.93,582.39,0.31520181]
[1744866062419,0.31140856,583.92,582.39,0.31520181]
[1744866062623,0.31140856,583.93,582.39,0.31520181]
[1744866062829,0.31140856,583.92,582.39,0.31520181]
[1744866063022,0.31140856,583.93,582.39,0.31520181]
[1744866063222,0.31140856,583.92,582.39,0.31520181]
[1744866063624,0.31140856,583.91,582.39,0.31520181]
[1744866063819,0.31140856,583.9,582.39,0.31520181]
[1744866064021,0.31140856,583.93,582.39,0.31520181]
[1744866064219,0.31140856,583.92,582.39,0.31520181]
[1744866064423,0.31140856,583.91,582.39,0.31520181]
[1744866064625,0.31140856,583.9,582.39,0.31520181]
[1744866064819,0.31140856,583.89,582.39,0.31520181]
[1744866065023,0.31140856,583.88,582.39,0.31520181]
[1744866065223,0.31140856,583.87,582.39,0.31520181]
[1744866065424,0.31140856,583.86,582.39,0.31520181]
[1744866065623,0.31140856,583.85,582.39,0.31520181]
[1744866065924,0.31140856,583.84,582.39,0.31520181]
[1744866066125,0.31140856,583.83,582.39,0.31520181]
[1744866066324,0.31140856,583.82,582.39,0.31520181]
[1744866066525,0.31140856,583.81,582.39,0.31520181]
[1744866066726,0.31140856,583.93,582.39,0.31520181]
[1744866066926,0.31140856,583.92,582.39,0.31520181]
[1744866067127,1.31078176,583.79,582.39,0.31520181]
[1744866067422,0.31140856,583.78,582.39,0.31520181]
[1744866069826,0.76049722,583.94,582.38,0.482]
[1744866070026,0.31140971,583.93,582.39,0.31520295]
[1744866073132,0.76049722,583.94,582.38,0.482]
[1744866073333,0.31140773,583.93,582.39,0.31520097]
[1744866073525,0.31140773,583.92,582.39,0.31520097]
[1744866073726,0.31140773,583.93,582.39,0.31520097]
[1744866074029,0.31140773,583.92,582.39,0.31520097]
[1744866074227,0.31140773,583.91,582.39,0.31520097]
[1744866074427,0.31140773,583.93,582.4,0.747]
[1744866074631,0.31140773,583.92,582.41,0.31520097]
[1744866074832,0.2984985,583.9,582.4,0.747]
[1744866075031,0.31140993,583.89,582.4,0.747]
[1744866075330,0.31140993,583.89,582.41,0.31517427]
[1744866076733,0.31140993,583.93,582.41,0.31517427]
[1744866077435,0.29847546,583.92,582.41,0.31517427]
[1744866077632,0.31140993,583.91,582.41,0.31517427]
[1744866078134,0.29847546,583.92,582.4,0.747]
[1744866078334,0.31133636,583.91,582.41,0.31512947]
[1744866078535,0.34253027,583.89,582.42,0.3433948]
[1744866078731,0.34253027,583.89,582.43,0.31512947]
[1744866078935,0.31133636,583.88,582.44,0.343383]
[1744866079135,0.34254787,583.86,582.45,0.31512947]
[1744866079336,0.31133636,583.85,582.46,0.34337121]
[1744866079537,0.3425596,583.84,582.47,0.31512947]
[1744866079737,0.31133636,583.83,582.47,0.31512947]
[1744866079938,0.34257134,583.82,582.47,0.31512947]
[1744866080236,0.31133636,583.81,582.47,0.31512947]
[1744866080836,0.34258307,583.8,582.47,0.31512947]
[1744866081135,0.31133636,583.79,582.47,0.31512947]
[1744866081338,0.34259481,583.78,582.47,0.65849479]
[1744866081538,0.31133636,583.77,582.48,0.31512947]
[1744866082837,0.2984793,583.76,582.48,0.31512947]
[1744866083037,0.31133636,583.75,582.48,0.31512947]
[1744866083238,0.31133636,583.75,582.49,0.7]
[1744866083431,0.31133636,583.75,582.5,0.31512947]
[1744866083633,0.34261828,583.74,582.5,0.31512947]
[1744866083837,0.31133636,583.73,582.5,0.31512947]
[1744866084034,0.34263002,583.72,582.5,0.31512947]
[1744866084234,0.31133636,583.71,582.5,0.31512947]
[1744866084438,0.34264176,583.7,582.5,0.31512947]
[1744866084739,0.31133636,583.69,582.51,0.689]
[1744866084939,0.31133636,583.69,582.52,0.31512947]
[1744866086239,0.3426535,583.68,582.52,0.31512947]
[1744866086434,0.31133636,583.67,582.52,0.31512947]
[1744866091247,0.3426535,583.68,582.51,0.689]
[1744866091442,0.31133354,583.67,582.52,0.31512665]
[1744866092944,0.31133354,583.67,582.53,0.31512642]
[1744866093144,0.31133332,583.66,582.53,0.31512642]
[1744866093443,0.31133332,583.65,582.54,0.31512642]
[1744866093644,0.31133332,583.67,582.52,0.31512642]
[1744866094446,0.3426535,583.68,582.51,0.98748698]
[1744866094646,0.31133354,583.67,582.52,0.31512665]
[1744866094947,1.01433354,583.67,582.52,0.31512665]
[1744866095146,0.31133354,583.66,582.52,0.31512665]
[1744866099648,0.31133354,583.66,582.51,0.98749338]
[1744866100545,0.31133354,583.66,582.51,0.689]
[1744866101345,0.31133354,583.66,582.52,0.3151499]
[1744866104052,0.34267112,583.65,582.52,0.3151499]
[1744866104254,0.31136838,583.64,582.53,0.31516153]
[1744866104453,0.31136838,583.64,582.51,0.9874985]
[1744866104454,0.65404537,583.64,582.52,0.31516153]
[1744866104653,0.31136838,583.63,582.53,0.31516153]
[1744866104855,0.31136838,583.63,582.52,0.31516153]
[1744866106756,0.34267699,583.64,582.51,0.689]
[1744866107755,0.29851642,583.63,582.51,0.689]
[1744866108351,0.34268873,583.62,582.51,0.689]
[1744866108556,0.31140966,583.61,582.51,0.689]
[1744866109057,0.34268873,583.62,582.51,0.689]
[1744866109251,0.31140984,583.61,582.51,0.689]
[1744866109656,0.34270047,583.6,582.51,0.689]
[1744866109852,0.31140984,583.59,582.51,0.689]
[1744866110053,0.34271222,583.58,582.51,0.689]
[1744866110257,0.31140984,583.57,582.51,0.689]
[1744866110456,0.65412793,583.57,582.51,0.689]
[1744866110660,0.31140984,583.56,582.5,0.29852539]
[1744866110860,0.31140996,583.55,582.5,0.29852539]
[1744866111056,0.31140996,583.56,582.5,0.29852539]
[1744866111257,0.31140996,583.55,582.5,0.29852539]
[1744866111460,0.31140996,583.56,582.5,0.29852539]
[1744866111661,0.31140996,583.55,582.5,0.29852539]
[1744866111956,0.31140996,583.54,582.5,0.29852539]
[1744866112161,0.31140996,583.56,582.5,0.29852539]
[1744866112563,0.31140996,583.56,582.49,0.7]
[1744866112757,0.31140996,583.56,582.5,0.29853179]
[1744866113057,0.31140996,583.56,582.5,0.61373449]
[1744866113259,0.31140996,583.56,582.5,0.29853179]
[1744866113863,0.31140996,583.56,582.51,0.495]
[1744866115864,0.31140973,583.55,582.51,0.495]
[1744866116164,0.31140973,583.54,582.51,0.495]
[1744866116464,0.31140973,583.53,582.51,0.495]
[1744866116760,0.31140973,583.56,582.51,0.495]
[1744866116961,0.31140973,583.55,582.51,0.495]
[1744866117159,0.31140973,583.54,582.51,0.495]
[1744866117360,0.31140973,583.56,582.51,0.495]
[1744866118168,0.31140973,583.56,582.52,0.577]
[1744866118366,0.31140973,583.56,582.53,0.31520271]
[1744866120463,0.34271809,583.57,582.52,0.577]
[1744866120667,0.31141005,583.56,582.53,0.3152033]
[1744866125073,0.34271809,583.57,582.52,0.577]
[1744866125269,0.31141005,583.56,582.53,0.3152033]
[1744866126367,0.31141005,583.56,582.53,0.9062033]
[1744866126570,0.31141005,583.56,582.54,0.3152033]
[1744866131370,0.478,583.55,582.54,0.3152033]
[1744866131567,0.478,583.55,582.53,0.591]
[1744866131771,0.31141239,583.54,582.54,0.31520564]
[1744866135473,0.31141239,583.54,582.53,0.591]
[1744866142778,0.34274158,583.53,582.53,0.591]
[1744866142979,0.31141239,583.52,582.53,0.591]
[1744866143179,0.65419444,583.51,582.53,0.591]
[1744866143380,0.65420032,583.5,582.53,0.591]
[1744866143574,0.65420619,583.49,582.53,0.591]
[1744866143878,0.65421207,583.48,582.53,0.591]
[1744866144080,0.65421794,583.47,582.53,0.591]
[1744866144279,0.65422382,583.46,582.53,0.591]
[1744866144484,0.65422969,583.45,582.53,0.591]
[1744866144683,0.31144111,583.44,582.53,0.591]
[1744866144886,0.31146125,583.43,582.53,0.591]
[1744866145082,0.31146125,583.44,582.53,0.591]
[1744866145887,0.31146125,583.44,582.53,1.106]
[1744866146483,0.31146152,583.43,582.53,1.106]
[1744866146683,0.31146152,583.44,582.53,1.106]
[1744866146887,0.31146152,583.43,582.53,1.106]
[1744866147088,0.31146152,583.44,582.53,1.106]
[1744866147283,0.31146152,583.43,582.53,1.106]
[1744866147483,0.31146152,583.42,582.53,1.106]
[1744866147787,0.31146152,583.41,582.53,1.106]
[1744866148089,0.31146152,583.4,582.53,1.106]
[1744866148288,0.31146152,583.44,582.53,1.106]
[1744866151292,0.34278858,583.45,582.53,1.106]
[1744866151492,0.31145913,583.44,582.53,1.106]
[1744866155994,0.78845913,583.44,582.53,1.106]
[1744866156293,0.31145913,583.43,582.53,1.106]
[1744866157994,0.477,583.44,582.53,1.106]
[1744866158294,0.31145673,583.43,582.53,1.106]
[1744866159593,0.477,583.44,582.53,1.106]
[1744866159794,0.31145697,583.43,582.53,1.106]
[1744866162595,0.31145697,583.43,582.53,1.553]
[1744866164495,0.477,583.44,582.53,1.553]
[1744866164697,0.3114553,583.43,582.53,1.553]
[1744866167998,0.31145566,583.42,582.53,1.553]
[1744866168190,0.31145566,583.41,582.53,1.553]
[1744866168497,0.31145566,583.4,582.53,1.553]
[1744866168693,0.31145566,583.43,582.53,1.553]
[1744866168891,0.31145566,583.42,582.53,1.553]
[1744866169091,0.31145566,583.43,582.53,1.553]
[1744866169296,0.31145566,583.42,582.53,1.553]
[1744866169495,0.31145566,583.43,582.53,1.553]
[1744866169695,0.31145566,583.42,582.53,1.553]
[1744866169895,0.31145566,583.43,582.53,1.553]
[1744866170092,0.31145566,583.42,582.53,1.553]
[1744866170296,0.31145566,583.43,582.53,1.553]
[1744866170495,0.31145566,583.42,582.53,1.553]
[1744866170800,0.31145566,583.41,582.53,1.553]
[1744866171002,0.31145566,583.43,582.53,1.553]
[1744866171199,0.31145566,583.42,582.53,1.553]
[1744866171400,0.31145566,583.43,582.53,1.553]
[1744866171599,0.31145566,583.42,582.53,1.553]
[1744866171900,0.31145566,583.41,582.53,1.553]
[1744866172094,0.31145566,583.43,582.53,1.553]
[1744866172499,0.477,583.44,582.53,1.553]
[1744866190618,0.477,583.44,582.54,0.31514763]
[1744866193522,0.477,583.44,582.53,0.447]
[1744866193722,0.477,583.44,582.54,0.31514584]
[1744866193921,0.477,583.44,582.54,0.89014584]
[1744866194121,0.477,583.44,582.55,0.31514584]
[1744866194522,0.477,583.44,582.55,0.90614584]
[1744866194719,0.477,583.44,582.56,0.31514584]
[1744866196822,0.477,583.44,582.55,0.591]
[1744866197018,0.477,583.44,582.56,0.31514377]
[1744866198523,0.477,583.44,582.55,0.591]
[1744866198823,0.477,583.44,582.56,0.31514536]
[1744866199523,0.477,583.44,582.55,0.591]
[1744866199821,0.477,583.44,582.56,0.31514362]
[1744866200122,0.477,583.44,582.55,0.591]
[1744866200318,0.477,583.44,582.56,0.31514091]
[1744866201324,0.477,583.44,582.55,0.88951899]
[1744866202623,0.477,583.44,582.55,0.591]
[1744866203826,0.477,583.44,582.55,0.88952027]
[1744866205627,0.477,583.44,582.55,0.591]
[1744866206128,0.477,583.44,582.56,0.31514601]
[1744866208929,0.477,583.44,582.57,0.31514601]
[1744866209126,0.477,583.44,582.55,0.31514601]
[1744866209325,0.477,583.44,582.56,0.31514601]
[1744866209526,0.477,583.44,582.55,0.31514601]
[1744866209832,0.477,583.44,582.55,1.02666372]
[1744866210031,0.477,583.44,582.56,0.31514601]
[1744866211234,0.31135544,583.43,582.56,0.31514601]
[1744866211534,0.31135544,583.42,582.57,0.31514857]
[1744866211734,0.31135544,583.44,582.56,0.31514857]
[1744866211926,0.34278858,583.45,582.57,0.31514857]
[1744866212130,0.3113529,583.44,582.56,0.31514857]
[1744866212328,0.3113529,583.44,582.57,0.31514857]
[1744866212627,0.3113529,583.44,582.58,0.31514857]
[1744866212828,0.3113529,583.44,582.56,0.61366499]
[1744866213133,0.3113529,583.44,582.57,0.31514857]
[1744866214837,0.8213529,583.44,582.56,0.31514857]
[1744866215137,0.3113529,583.43,582.57,0.31514857]
[1744866217744,0.3113529,583.43,582.56,0.31514857]
[1744866217941,0.31134959,583.42,582.57,0.31514272]
[1744866218141,0.31134959,583.43,582.56,0.31514272]
[1744866218446,0.31134959,583.43,582.56,0.61366043]
[1744866218743,0.31134959,583.43,582.57,0.31514272]
[1744866219445,0.51,583.44,582.56,0.29851771]
[1744866219645,0.51,583.44,582.58,0.546]
[1744866219843,0.51,583.44,582.59,0.31514255]
[1744866222550,0.51,583.44,582.58,0.546]
[1744866222850,0.51,583.44,582.59,0.31514562]
[1744866225749,0.51,583.44,582.58,0.546]
[1744866225953,0.51,583.44,582.59,0.31514564]
[1744866226152,0.51,583.44,582.59,0.79114564]
[1744866226353,0.51,583.44,582.6,0.31514564]
[1744866227354,0.51,583.44,582.59,0.476]
[1744866227552,0.51,583.44,582.6,0.31514564]
[1744866228958,0.51,583.44,582.59,0.476]
[1744866229152,0.51,583.44,582.6,0.31514534]
[1744866229558,0.3113522,583.43,582.6,0.31514534]
[1744866230656,0.51,583.44,582.59,0.476]
[1744866230861,0.3113519,583.43,582.6,0.31514504]
[1744866231362,0.51,583.44,582.6,0.31514504]
[1744866231564,0.31135283,583.43,582.6,0.31514504]
[1744866231764,0.51,583.44,582.6,0.31514504]
[1744866233869,0.51,583.44,582.61,0.31514652]
[1744866234167,0.51,583.44,582.62,0.31514652]
[1744866234368,0.51,583.44,582.6,0.31514652]
[1744866234565,0.51,583.44,582.59,0.476]
[1744866234765,0.51,583.44,582.6,0.31514652]
[1744866236971,0.51,583.44,582.59,0.476]
[1744866237168,0.51,583.44,582.6,0.31514681]
[1744866237471,0.31135555,583.43,582.6,0.31514681]
[1744866238567,0.51,583.44,582.59,0.476]
[1744866238967,0.34278858,583.45,582.59,0.476]
[1744866241472,0.86378858,583.45,582.59,0.476]
[1744866245175,0.86378858,583.45,582.58,0.8445049]
[1744866247675,0.86378858,583.45,582.58,0.546]
[1744866247978,0.86378858,583.45,582.58,0.8445049]
[1744866248778,0.86378858,583.45,582.59,0.618]
[1744866250183,0.521,583.45,582.59,0.618]
[1744866254684,0.521,583.45,582.6,0.528]
[1744866272700,0.521,583.45,582.61,0.557]
[1744866278909,0.521,583.45,582.62,0.6]
[1744866279209,0.521,583.45,582.63,0.31511776]
[1744866279910,0.521,583.45,582.62,0.6]
[1744866280206,0.521,583.45,582.63,0.605]
[1744866285317,0.521,583.45,582.64,0.31511838]
[1744866286918,0.521,583.45,582.63,0.605]
[1744866287813,0.521,583.45,582.64,0.575]
[1744866301420,0.31138431,583.44,582.64,0.575]
[1744866301924,0.31138677,583.43,582.64,0.575]
[1744866302124,0.31138677,583.99,582.64,0.575]
[1744866302320,0.34251267,583.92,582.64,0.575]
[1744866302518,0.31138677,583.91,582.64,0.575]
[1744866302723,0.34253027,583.89,582.64,0.575]
[1744866302923,0.31138677,583.88,582.64,0.575]
[1744866303124,0.34254787,583.86,582.64,0.575]
[1744866303425,0.31138677,583.85,582.64,0.575]
[1744866303726,0.34256547,583.83,582.64,0.575]
[1744866303925,0.31138677,583.82,582.64,0.575]
[1744866304125,0.31138677,583.81,582.64,0.575]
[1744866304323,0.31138677,583.8,582.64,0.575]
[1744866304524,0.31138677,583.79,582.64,0.575]
[1744866304719,0.31138677,583.78,582.64,0.575]
[1744866305026,0.31138677,583.77,582.64,0.575]
[1744866305426,0.34260655,583.76,582.64,0.575]
[1744866305621,0.31138677,583.75,582.64,0.575]
[1744866305820,0.34261828,583.74,582.64,0.575]
[1744866306022,0.31138677,583.73,582.64,0.575]
[1744866306225,0.34263002,583.72,582.64,0.575]
[1744866306422,0.31138677,583.71,582.64,0.575]
[1744866306728,0.34264176,583.7,582.64,0.575]
[1744866307026,0.31138677,583.69,582.64,0.575]
[1744866307223,0.3426535,583.68,582.64,0.575]
[1744866307421,0.31138677,583.67,582.64,0.575]
[1744866307624,0.34266525,583.66,582.64,0.575]
[1744866307823,0.31138677,583.65,582.64,0.575]
[1744866308020,0.34267699,583.64,582.64,0.575]
[1744866308227,0.31140044,583.63,582.64,0.575]
[1744866308427,0.34268873,583.62,582.64,0.575]
[1744866308726,0.31140044,583.61,582.64,0.575]
[1744866308927,0.34270047,583.6,582.64,0.575]
[1744866309129,0.31140044,583.59,582.64,0.575]
[1744866311530,0.31139632,583.58,582.64,0.575]
[1744866311731,0.31139632,583.59,582.64,0.575]
[1744866312031,0.31139632,583.58,582.64,0.575]
[1744866312229,0.31139632,583.59,582.64,0.575]
[1744866312533,0.31139632,583.58,582.64,0.575]
[1744866312733,0.31139632,583.59,582.64,0.575]
[1744866312934,0.31139935,583.58,582.64,0.575]
[1744866313127,0.31139935,583.57,582.64,0.575]
[1744866313330,0.31139935,583.59,582.64,0.575]
[1744866315937,0.31139935,583.59,582.62,0.6]
[1744866316636,0.31139935,583.59,582.63,0.649]
[1744866317639,0.34270047,583.6,582.63,0.649]
[1744866317837,0.31139932,583.59,582.63,0.649]
[1744866318234,0.31139932,583.59,582.64,0.606]
[1744866319232,0.34270047,583.6,582.64,0.606]
[1744866319435,0.31139919,583.59,582.64,0.606]
[1744866320843,0.34270047,583.6,582.64,0.606]
[1744866321143,0.31140238,583.59,582.64,0.606]
[1744866322445,0.34270047,583.6,582.64,0.606]
[1744866322646,0.31140198,583.59,582.64,0.606]
[1744866322945,0.65410833,583.59,582.64,0.606]
[1744866323243,0.31140198,583.58,582.64,0.606]
[1744866324244,0.34271809,583.57,582.64,0.606]
[1744866324445,0.31140198,583.56,582.64,0.606]
[1744866324745,0.34272984,583.55,582.64,0.606]
[1744866324943,0.31140198,583.54,582.64,0.606]
[1744866325144,0.34274158,583.53,582.64,0.606]
[1744866325341,0.31140198,583.52,582.64,0.606]
[1744866325546,0.34275333,583.51,582.64,0.606]
[1744866325741,0.31143015,583.5,582.64,0.606]
[1744866325944,0.65418936,583.5,582.64,0.606]
[1744866326240,0.31143015,583.49,582.64,0.606]
[1744866326842,0.34275921,583.5,582.64,0.606]
[1744866327442,0.31143299,583.49,582.64,0.606]
[1744866329149,0.65419807,583.49,582.64,0.606]
[1744866329343,0.31143299,583.48,582.64,0.606]
[1744866330446,0.34276508,583.49,582.64,0.606]
[1744866330650,0.3114563,583.48,582.64,0.606]
[1744866331950,0.34276508,583.49,582.64,0.606]
[1744866332149,0.3114681,583.48,582.64,0.606]
[1744866333553,0.3114681,583.48,582.63,0.649]
[1744866333753,0.31147355,583.47,582.63,0.649]
[1744866333948,0.31147355,583.48,582.63,0.649]
[1744866334252,0.34276508,583.49,582.63,0.649]
[1744866334253,0.31147355,583.47,582.63,0.649]
[1744866334551,0.31147355,583.46,582.63,0.649]
[1744866334751,0.31147355,583.48,582.63,0.649]
[1744866334951,0.34276508,583.49,582.63,0.649]
[1744866335154,0.31147355,583.48,582.63,0.649]
[1744866336158,0.34277683,583.47,582.63,0.649]
[1744866336355,0.31147355,583.46,582.63,0.649]
[1744866338355,0.34277683,583.47,582.63,0.649]
[1744866338660,0.31147385,583.46,582.63,0.649]
[1744866338861,0.34278858,583.45,582.63,0.649]
[1744866339155,0.31147385,583.44,582.63,0.649]
[1744866349567,0.34278858,583.45,582.63,0.649]
[1744866349766,0.31148432,583.44,582.63,0.649]
[1744866357675,0.34278858,583.45,582.63,0.649]
[1744866357877,0.34280033,583.43,582.63,0.649]
[1744866358175,0.31148938,583.42,582.63,0.649]
[1744866359276,0.34280033,583.43,582.63,0.649]
[1744866359470,0.31148227,583.42,582.63,0.649]
[1744866360879,0.34281208,583.41,582.63,0.649]
[1744866361072,0.31148227,583.4,582.63,0.649]
[1744866361273,0.31150151,583.39,582.63,0.649]
[1744866361471,0.31150151,583.38,582.63,0.649]
[1744866361670,0.31150151,583.4,582.63,0.649]
[1744866361875,0.31150151,583.39,582.63,0.649]
[1744866362071,0.31150151,583.4,582.63,0.649]
[1744866362275,0.31148871,583.39,582.63,0.649]
[1744866362470,0.31148871,583.4,582.63,0.649]
[1744866368574,0.34281208,583.41,582.63,0.649]
[1744866368778,0.31148228,583.4,582.63,0.649]
[1744866369875,0.31148228,583.4,582.36,0.628]
[1744866370179,0.34281208,583.41,582.36,0.628]
[1744866370380,0.31148556,583.39,582.36,0.628]
[1744866370582,0.31148556,583.38,582.36,0.628]
[1744866370881,0.31148556,583.37,582.36,0.628]
[1744866371082,0.31148556,583.36,582.36,0.628]
[1744866371283,0.31148556,583.35,582.36,0.628]
[1744866371476,0.31148556,583.34,582.36,0.628]
[1744866371683,0.31148556,583.4,582.36,0.628]
[1744866371983,0.31148228,583.39,582.36,0.628]
[1744866372983,0.31148228,583.39,582.44,0.526]
[1744866375082,0.31149485,583.38,582.44,0.526]
[1744866375282,0.31149485,583.37,582.44,0.526]
[1744866375485,0.31149485,583.36,582.44,0.526]
[1744866375783,0.31149485,583.35,582.44,0.526]
[1744866375981,0.34281796,583.4,582.44,0.526]
[1744866375982,0.31149485,583.39,582.44,0.526]
[1744866376186,0.31149485,583.38,582.44,0.526]
[1744866376380,0.31149485,583.39,582.44,0.526]
[1744866376684,0.31148474,583.38,582.44,0.526]
[1744866376885,0.31148474,583.37,582.44,0.526]
[1744866377085,0.31148474,583.39,582.44,0.526]
[1744866377283,0.31148474,583.38,582.44,0.526]
[1744866377484,0.34282971,583.38,582.44,0.526]
[1744866377780,0.31148474,583.37,582.44,0.526]
[1744866377980,0.79548474,583.37,582.44,0.526]
[1744866378184,0.31148474,583.36,582.44,0.526]
[1744866381488,0.484,583.37,582.44,0.526]
[1744866381691,0.3115041,583.36,582.44,0.526]
[1744866382192,0.3115041,583.36,582.45,0.593]
[1744866383092,0.484,583.37,582.45,0.593]
[1744866383392,0.31150835,583.36,582.45,0.593]
[1744866384692,0.82683559,583.37,582.45,0.593]
[1744866385001,0.31150895,583.36,582.45,0.593]
[1744866389396,0.82683559,583.37,582.45,0.593]
[1744866389592,0.31150827,583.36,582.45,0.593]
[1744866391093,0.31150684,583.35,582.45,0.593]
[1744866391296,0.31150684,583.36,582.45,0.593]
[1744866391497,0.31150684,583.35,582.45,0.593]
[1744866391698,0.31150684,583.36,582.45,0.593]
[1744866391898,0.31150684,583.35,582.45,0.593]
[1744866392094,0.31150684,583.34,582.45,0.593]
[1744866392295,0.31150684,583.33,582.45,0.593]
[1744866392595,0.31150684,583.32,582.45,0.593]
[1744866392801,0.31150684,583.31,582.45,0.593]
[1744866392999,0.31150684,583.3,582.45,0.593]
[1744866393199,0.31150684,583.29,582.45,0.593]
[1744866393399,0.31150684,583.36,582.45,0.593]
[1744866393699,0.31150684,583.35,582.45,0.593]
[1744866393895,0.31150684,583.36,582.45,0.593]
[1744866394099,0.31150684,583.35,582.45,0.593]
[1744866394293,0.31150714,583.34,582.45,0.593]
[1744866394495,0.31150714,583.33,582.45,0.593]
[1744866394695,0.31150714,583.32,582.46,0.562]
[1744866394899,0.31150714,583.31,582.46,0.562]
[1744866395099,0.31150714,583.3,582.46,0.562]
[1744866395299,0.31150714,583.29,582.46,0.562]
[1744866395501,0.31150714,583.28,582.46,0.562]
[1744866395701,0.31150714,583.36,582.46,0.562]
[1744866396000,0.31150752,583.35,582.46,0.562]
[1744866396201,0.31150752,583.36,582.46,0.562]
[1744866397398,0.82683559,583.37,582.46,0.562]
[1744866397602,0.31150922,583.36,582.46,0.562]
[1744866399000,0.82683559,583.37,582.46,0.562]
[1744866399197,0.65435917,583.36,582.46,0.562]
[1744866399398,0.34284734,583.35,582.46,0.562]
[1744866405008,0.39,583.34,582.46,0.562]
[1744866405605,0.3428591,583.33,582.46,0.562]
[1744866408909,0.31152609,583.32,582.46,0.562]
[1744866409910,0.34287085,583.31,582.46,0.562]
[1744866410110,0.31152609,583.3,582.46,0.562]
[1744866410411,0.34288261,583.29,582.46,0.562]
[1744866410611,0.31152609,583.28,582.46,0.562]
[1744866410807,0.34289437,583.27,582.46,0.562]
[1744866411104,0.31152609,583.26,582.46,0.562]
[1744866411308,0.34290612,583.25,582.46,0.562]
[1744866411614,0.31152609,583.24,582.46,0.562]
[1744866411806,0.34291788,583.23,582.46,0.562]
[1744866412005,0.31158196,583.22,582.46,0.55629356]
[1744866412212,0.34292964,583.21,582.44,0.526]
[1744866412406,0.31158196,583.2,582.44,0.526]
[1744866412609,0.3429414,583.19,582.45,0.53]
[1744866412907,0.31158196,583.18,582.45,0.53]
[1744866413108,0.65452924,583.18,582.45,0.53]
[1744866413309,0.31158196,583.17,582.45,0.53]
[1744866415115,0.31132566,583.16,582.45,0.53]
[1744866415414,0.31132566,583.15,582.45,0.53]
[1744866415615,0.31132566,583.17,582.45,0.53]
[1744866415810,0.34294728,583.18,582.45,0.53]
[1744866416013,0.31132577,583.17,582.45,0.53]
[1744866416510,0.34294728,583.18,582.45,0.53]
[1744866416810,0.31133347,583.17,582.45,0.53]
[1744866417714,0.34294728,583.18,582.45,0.53]
[1744866421717,0.31132153,583.17,582.45,0.53]
[1744866424218,0.34294728,583.18,582.45,0.53]
[1744866424518,0.31134815,583.17,582.45,0.53]
[1744866425522,0.34295905,583.16,582.45,0.53]
[1744866425716,0.31134815,583.15,582.45,0.53]
[1744866426020,0.65431308,583.15,582.45,0.53]
[1744866426220,0.31134815,583.14,582.45,0.53]
[1744866427317,0.387,583.13,582.45,0.53]
[1744866427517,0.31134815,583.12,582.45,0.53]
[1744866428021,0.31134815,583.12,582.46,0.578]
[1744866432126,0.387,583.13,582.46,0.578]
[1744866432432,0.31132569,583.12,582.46,0.578]
[1744866435432,0.387,583.13,582.46,0.578]
[1744866435633,0.31132508,583.12,582.46,0.578]
[1744866438648,0.31132975,583.11,582.46,0.578]
[1744866438833,0.31132975,583.12,582.46,0.578]
[1744866439030,0.31132975,583.11,582.46,0.578]
[1744866439334,0.31132975,583.1,582.46,0.578]
[1744866439531,0.31132975,583.12,582.46,0.578]
[1744866439834,0.31132975,583.11,582.46,0.578]
[1744866440032,0.387,583.13,582.46,0.578]
[1744866440235,0.31132538,583.12,582.46,0.578]
[1744866441333,0.387,583.13,582.46,0.578]
[1744866442243,0.387,583.13,582.47,0.522]